fUST/lending_fUST_20250306
["ID","MTS","AMOUNT","RATE_DAILY","PERIOD"]
[355546164,1741259432208,-154.24,0.0003569,2]
[355546165,1741259432218,-248.72469907,0.000357,2]
[355546166,1741259432227,-160.303529,0.0003589,2]
[355546167,1741259432236,-660.61845865,0.000359,7]
[355546168,1741259432246,-156.2759459,0.000362,98]
[355546169,1741259432255,-156.27594588,0.000362,98]
[355546170,1741259432265,-154.24,0.0003699,2]
[355546171,1741259432275,-154.24,0.0003699,2]
[355546172,1741259432284,-154.24,0.0003699,2]
[355546173,1741259432293,-154.24,0.0003699,2]
[355546174,1741259432303,-154.24,0.0003699,2]
[355546175,1741259432312,-154.24,0.0003699,2]
[355546176,1741259432321,-154.24,0.0003699,2]
[355546177,1741259432333,-154.24,0.0003699,2]
[355546178,1741259432342,-5788.05606483,0.00037,120]
[355546179,1741259432354,-12673.46749064,0.00037,120]
[355546180,1741259432363,-1288.8054906,0.00037239,4]
[355546181,1741259432372,-1330.53920101,0.00038,7]
[355546182,1741259432383,-201.33216879,0.000381,2]
[355546183,1741259432393,-500.0,0.000381,2]
[355546184,1741259432403,-201.33216878,0.00038139,2]
[355546185,1741259432413,-201.33216878,0.00038178,2]
[355546186,1741259432423,-10531.4673572,0.0003819,3]
[355546187,1741259432433,-151.0,0.0003819,14]
[355546188,1741259432442,-2038.50087576,0.00038199,120]
[355546189,1741259432453,-611.01190114,0.00038199,2]
[355546190,1741259432464,-500.0,0.00038199,2]
[355546191,1741259432474,-500.0,0.00038199,2]
[355546192,1741259432483,-500.0,0.00038199,2]
[355546193,1741259432492,-258.998,0.00038199,15]
[355546194,1741259432501,-500.0,0.00038199,2]
[355546195,1741259432511,-500.0,0.00038199,2]
[355546196,1741259432520,-500.0,0.00038199,2]
[355546197,1741259432529,-500.0,0.00038199,2]
[355546198,1741259432538,-500.0,0.00038199,2]
[355546199,1741259432548,-500.0,0.00038199,2]
[355546200,1741259432557,-500.0,0.00038199,2]
[355546201,1741259432567,-235.95,0.00038199,2]
[355546202,1741259432576,-9839.16579128,0.000382,120]
[355546203,1741259437772,-694.908,0.000382,120]
[355546204,1741259437784,-3641.8577154,0.000382,120]
[355546265,1741259442928,-150.0,0.000361,2]
[355546266,1741259442938,-1229.350813,0.000382,120]
[355546302,1741259446444,-84594.71768032,0.000382,120]
[355546304,1741259446454,-154.905345,0.000382,14]
[355546306,1741259446463,-154.967354,0.000382,14]
[355546308,1741259446473,-5000.0,0.0003821,10]
[355546310,1741259446482,-201.33216878,0.00038217,2]
[355546312,1741259446492,-201.33216878,0.00038256,2]
[355546314,1741259446501,-1000.0,0.00038328,2]
[355546316,1741259446511,-1000.0,0.00038328,2]
[355546318,1741259446521,-500.0,0.00038328,2]
[355546320,1741259446531,-37901.8331097,0.00038346,3]
[355546512,1741260393133,-166.86045548,0.00023,10]
[355546513,1741260393157,-880.51377745,0.00023,10]
[355546514,1741260393180,-139.8266088,0.00035,30]
[355546527,1741260548091,-3593.6207571,0.00018,2]
[355546565,1741260637997,-917.1733912,0.00035,30]
[355546566,1741260638008,-1009.5,0.00035,120]
[355546567,1741260638018,-160.303529,0.0003589,2]
[355546568,1741260638028,-152.0,0.000373,120]
[355546569,1741260638038,-156.27594588,0.00037461,105]
[355546570,1741260638047,-104.74713392,0.00037561,4]
[355546618,1741261602098,-150.0,0.000329,2]
[355546619,1741261602118,-267.966558,0.00036143,2]
[355546620,1741261602139,-1882.33967585,0.000373,120]
[355546674,1741261832202,-500.0,0.000341,2]
[355546675,1741261832212,-160.303529,0.0003589,2]
[355546676,1741261832222,-400.0,0.00036228,2]
[355546677,1741261832231,-2231.63545873,0.00036229,5]
[355546678,1741261832360,-406.271099,0.00036229,5]
[355546679,1741261832372,-456.65,0.00036229,5]
[355546687,1741261838034,-689.9936776,0.00036229,5]
[355546688,1741261838044,-7068.9022909,0.00036229,2]
[355546689,1741261838053,-1125.73062192,0.000373,5]
[355546690,1741261838063,-3117.66032415,0.000373,120]
[355546691,1741261838073,-1177.9379227,0.00037561,4]
[355546692,1741261838083,-899.12122242,0.00038,120]
[355546693,1741261838096,-100.87877758,0.00038,120]
[355546694,1741261838105,-2069.39215148,0.00038145,2]
[355546695,1741261838145,-622.40740049,0.00038145,2]
[355546696,1741261838155,-250.0,0.00038199,15]
[355546697,1741261838164,-389.9908,0.000382,120]
[355546698,1741261838174,-1237.0857614,0.00038236,3]
[355546707,1741261840374,-7383.74961268,0.00038236,3]
[355546708,1741261840385,-500.0,0.00038245,2]
[355546709,1741261840395,-500.0,0.00038245,15]
[355546710,1741261840404,-500.0,0.00038245,2]
[355546711,1741261840414,-500.0,0.00038245,15]
[355546712,1741261840423,-500.0,0.00038245,2]
[355546713,1741261840433,-500.0,0.00038245,2]
[355546714,1741261840442,-500.0,0.00038245,2]
[355546715,1741261840452,-500.0,0.00038245,2]
[355546716,1741261840462,-500.0,0.00038245,2]
[355546717,1741261840471,-500.0,0.00038245,2]
[355546718,1741261840481,-500.0,0.00038245,2]
[355546719,1741261840490,-500.0,0.00038245,2]
[355546720,1741261840499,-500.0,0.00038245,2]
[355546721,1741261840508,-500.0,0.00038245,2]
[355546722,1741261840517,-500.0,0.00038245,2]
[355546723,1741261840527,-500.0,0.00038245,2]
[355546724,1741261840536,-500.0,0.00038245,2]
[355546725,1741261840546,-500.0,0.00038245,2]
[355546726,1741261840557,-500.0,0.00038245,2]
[355546727,1741261840567,-650.98815194,0.00038245,2]
[355546728,1741261840577,-500.0,0.00038245,2]
[355546729,1741261840586,-500.0,0.00038245,2]
[355546730,1741261840595,-500.0,0.00038245,2]
[355546731,1741261840605,-500.0,0.00038245,2]
[355546732,1741261840615,-500.0,0.00038245,2]
[355546733,1741261840625,-500.0,0.00038245,2]
[355546734,1741261840636,-500.0,0.00038245,2]
[355546735,1741261840646,-500.0,0.00038245,2]
[355546736,1741261840655,-500.0,0.00038245,2]
[355546737,1741261840665,-500.0,0.00038245,2]
[355546738,1741261840674,-500.0,0.00038245,2]
[355546739,1741261840684,-500.0,0.00038245,2]
[355546740,1741261840693,-500.0,0.00038245,2]
[355546741,1741261840703,-500.0,0.00038245,2]
[355546742,1741261840712,-500.0,0.00038245,2]
[355546743,1741261840721,-500.0,0.00038245,2]
[355546744,1741261840732,-500.0,0.00038245,2]
[355546745,1741261840741,-500.0,0.00038245,2]
[355546746,1741261840751,-500.0,0.00038245,2]
[355546747,1741261840760,-300.0,0.00038245,2]
[355546748,1741261840770,-500.0,0.00038245,2]
[355546749,1741261840779,-71706.24454434,0.00038246,2]
[355546750,1741261840792,-67652.53839396,0.00038246,2]
[355546751,1741261840832,-45704.00000001,0.00038246,2]
[355546767,1741261843487,-255.58958154,0.00038246,2]
[355546970,1741262960112,-225.06894065,0.00025205,2]
[355546972,1741262998902,150.0,0.00023105,2]
[355546973,1741262999092,150.0,0.00028105,2]
[355546981,1741263036091,-160.303529,0.0003589,2]
[355546982,1741263036101,-883.4534421,0.00037561,4]
[355546983,1741263036110,-219.0,0.00037999,2]
[355546984,1741263036119,-1669.08062983,0.00038,2]
[355546985,1741263036131,-670.56998,0.00038,2]
[355547044,1741263038298,-2500.0,0.00038,2]
[355547045,1741263038311,-8899.48105498,0.00038,2]
[355547091,1741263040572,-7372.04873519,0.00038,2]
[355547093,1741263040581,-200.0,0.00038,120]
[355547095,1741263040591,-2355.324608,0.00038156,2]
[355547097,1741263040600,-1574.79418554,0.00038223,2]
[355547099,1741263040611,-811.1685936,0.00038223,2]
[355547101,1741263040620,-1892.27511767,0.00038245,5]
[355547103,1741263040631,-31391.67365644,0.00038246,2]
[355547133,1741263046389,-500.0,0.00038245,15]
[355547134,1741263046399,-169.76127645,0.00038245,15]
[355547135,1741263046409,-261.45991108,0.00038245,15]
[355547136,1741263046419,-214.89575501,0.00038246,2]
[355547249,1741264006106,-163.512614,0.0003589,2]
[355547250,1741264006129,-513.2654842,0.00036142,2]
[355547255,1741264123295,1349.63128511,0.00015,2]
[355547256,1741264123323,14650.36871489,0.00015,2]
[355547257,1741264148085,-634.78604066,0.0002101,2]
[355547350,1741264203633,150.0,0.000189,2]
[355547377,1741264236377,-985.66055631,0.00035,2]
[355547378,1741264236389,-165.39300016,0.00035,2]
[355547379,1741264236400,-763.7791212,0.00036142,2]
[355547380,1741264236410,-1500.0,0.00036142,2]
[355547381,1741264236419,-170.146869,0.0003625,2]
[355547382,1741264236429,-158.523181,0.00036946,4]
[355547383,1741264236438,-400.0,0.0003748,2]
[355547386,1741264236459,-662.5900815,0.00037481,4]
[355547388,1741264236470,-350.0,0.00038,2]
[355547390,1741264236480,-500.00000001,0.00038,2]
[355547391,1741264236489,-1753.58778224,0.00038,30]
[355547393,1741264236499,-158.523181,0.00038011,60]
[355547395,1741264236509,-311.14859491,0.000381,3]
[355547397,1741264236518,-2060.909032,0.00038156,2]
[355547398,1741264236528,-453.99666665,0.00038236,3]
[355547400,1741264236550,-8179.66826482,0.00038236,3]
[355547401,1741264236561,-500.0,0.00038245,2]
[355547402,1741264236571,-500.0,0.00038245,2]
[355547403,1741264236580,-500.0,0.00038245,2]
[355547404,1741264236590,-500.0,0.00038245,2]
[355547405,1741264236600,-597.91660435,0.00038245,2]
[355547406,1741264236610,-500.0,0.00038245,2]
[355547407,1741264236620,-500.0,0.00038245,2]
[355547408,1741264236630,-500.0,0.00038245,2]
[355547409,1741264236640,-500.0,0.00038245,2]
[355547410,1741264236649,-500.0,0.00038245,2]
[355547411,1741264236660,-500.0,0.00038245,2]
[355547412,1741264236670,-500.0,0.00038245,2]
[355547413,1741264236679,-500.0,0.00038245,2]
[355547414,1741264236689,-500.0,0.00038245,15]
[355547415,1741264236699,-500.0,0.00038245,15]
[355547416,1741264236708,-500.0,0.00038245,15]
[355547417,1741264236718,-423.37278609,0.00038245,15]
[355547418,1741264236728,-292.18643905,0.00038245,15]
[355547419,1741264236738,-512.21682908,0.00038245,15]
[355547420,1741264236748,-249.52,0.00038245,2]
[355547421,1741264236758,-562.86531096,0.00038245,5]
[355547422,1741264236767,-2061.95528819,0.00038245,5]
[355547423,1741264236777,-3841.82384652,0.00038246,2]
[355548028,1741264244262,-570.90123603,0.00038246,2]
[355548229,1741264246572,-293.56990157,0.00038156,2]
[355548230,1741264246583,-4243.29509111,0.00038246,2]
[355548278,1741264852003,500.0,0.00016022,2]
[355548284,1741265409718,357.3123766,0.000189,2]
[355548285,1741265409792,357.3123766,0.000239,2]
[355548301,1741265432893,-194.73274708,0.000349,2]
[355548302,1741265432903,-2198.568062,0.00035,2]
[355548303,1741265432912,-380.0,0.00035067,2]
[355548304,1741265432923,-160.0,0.00035388,2]
[355548305,1741265432933,-164.054659,0.0003589,2]
[355548306,1741265432943,-4429.5873607,0.00036898,120]
[355548307,1741265432953,-1000.0,0.00037,120]
[355548308,1741265432963,-496.9425612,0.00037481,4]
[355548309,1741265432975,-713.3968412,0.000379,8]
[355548310,1741265432985,-1832.067354,0.000379,2]
[355548311,1741265432995,-338316.4,0.000379,2]
[355548312,1741265433005,-10948.14669933,0.000379,30]
[355548313,1741265433015,-1000.0,0.00038,120]
[355548314,1741265433025,-37110.44529423,0.00038,10]
[355548315,1741265433035,-416.66666667,0.00038,10]
[355548316,1741265433046,-175.75025747,0.00038035,2]
[355548317,1741265433057,-175.75025747,0.00038046,2]
[355548318,1741265433067,-1500.0,0.000381,10]
[355548319,1741265433078,-473.01,0.00038116,3]
[355548320,1741265433089,-473.01,0.00038116,3]
[355548321,1741265433099,-500.0,0.00038123,2]
[355548323,1741265433109,-500.0,0.00038123,15]
[355548325,1741265433120,-500.0,0.00038123,15]
[355548327,1741265433131,-500.0,0.00038123,15]
[355548329,1741265433142,-500.0,0.00038123,2]
[355548331,1741265433152,-500.0,0.00038123,15]
[355548333,1741265433163,-500.0,0.00038123,15]
[355548335,1741265433173,-500.0,0.00038123,15]
[355548337,1741265433184,-500.0,0.00038123,15]
[355548339,1741265433194,-500.0,0.00038123,2]
[355548341,1741265433204,-500.0,0.00038123,2]
[355548343,1741265433214,-500.0,0.00038123,15]
[355548345,1741265433226,-500.0,0.00038123,15]
[355548347,1741265433237,-647.0,0.00038123,15]
[355548349,1741265433247,-500.0,0.00038123,15]
[355548351,1741265433259,-500.0,0.00038123,2]
[355548353,1741265433269,-500.0,0.00038123,2]
[355548355,1741265433280,-500.0,0.00038123,15]
[355548357,1741265433291,-500.0,0.00038123,15]
[355548358,1741265433301,-500.0,0.00038123,2]
[355548359,1741265433312,-500.0,0.00038123,2]
[355548360,1741265433322,-557.0,0.00038123,2]
[355548362,1741265433332,-1031.91973676,0.00038123,5]
[355548363,1741265433342,-28438.5380944,0.00038126,3]
[355548365,1741265433352,-642.08941779,0.00038135,15]
[355548367,1741265433362,-500.0,0.00038135,15]
[355548369,1741265433372,-495.78029454,0.00038135,15]
[355548371,1741265433382,-1330.53920101,0.00038135,11]
[355548373,1741265433392,-142192.690472,0.00038136,3]
[355548375,1741265433403,-6687.89517834,0.00038136,14]
[355548378,1741265433416,-1750.75781448,0.00038136,14]
[355548384,1741265433566,-500.0,0.00038123,15]
[355548385,1741265433577,-500.0,0.00038123,2]
[355548386,1741265433587,-500.0,0.00038123,15]
[355548387,1741265433597,-500.0,0.00038123,2]
[355548388,1741265433607,-500.0,0.00038123,15]
[355548389,1741265433617,-500.0,0.00038123,2]
[355548390,1741265433627,-500.0,0.00038123,15]
[355548391,1741265433637,-1561.34700718,0.00038136,14]
[355548392,1741265433647,-10000.0,0.00038136,14]
[355548393,1741265433657,-10000.0,0.00038136,14]
[355548394,1741265433668,-669.27286325,0.00038136,14]
[355548408,1741265438699,-2500.0,0.00038,5]
[355548409,1741265438711,-1668.94880376,0.00038,5]
[355548410,1741265438760,-4390.59497088,0.00038,5]
[355548450,1741265444112,-40.53434012,0.00038,5]
[355548452,1741265444121,-500.0,0.00038123,2]
[355548454,1741265444131,-430.0,0.00038123,15]
[355548456,1741265444142,-500.0,0.00038123,2]
[355548458,1741265444151,-500.0,0.00038123,15]
[355548460,1741265444162,-500.0,0.00038123,2]
[355548462,1741265444172,-500.0,0.00038123,2]
[355548464,1741265444182,-500.0,0.00038123,15]
[355548466,1741265444192,-431.57638485,0.00038123,2]
[355548468,1741265444202,-500.0,0.00038123,15]
[355548470,1741265444212,-500.0,0.00038123,2]
[355548472,1741265444222,-500.0,0.00038123,2]
[355548474,1741265444234,-651.84088851,0.00038123,15]
[355548476,1741265444244,-500.0,0.00038123,2]
[355548478,1741265444254,-500.0,0.00038123,2]
[355548481,1741265444263,-500.0,0.00038123,2]
[355548483,1741265444272,-7273.55783012,0.00038136,14]
[355548485,1741265444285,-2057.16930663,0.00038136,14]
[355548487,1741265444294,-10000.0,0.00038136,14]
[355548489,1741265444303,-10000.0,0.00038136,14]
[355548491,1741265444313,-10000.0,0.00038136,14]
[355548493,1741265444322,-10000.0,0.00038136,14]
[355548495,1741265444332,-2688.03093231,0.00038136,14]
[355551448,1741266302047,10000.0,0.0002,10]
[355551449,1741266318672,10000.0,0.0002,10]
[355551451,1741266327450,10000.0,0.0002,10]
[355551452,1741266360394,10000.0,0.0002,10]
[355551453,1741266377145,10000.0,0.0002,10]
[355551454,1741266397290,-400.0,0.00035308,2]
[355551455,1741266397315,-1276.17396172,0.00035309,2]
[355551465,1741266564337,34784.38757189,0.0002,120]
[355551466,1741266564365,25000.0,0.0002,120]
[355551467,1741266571267,-4359.14547766,0.0002,120]
[355551497,1741266631905,-294.69766312,0.000189,2]
[355551498,1741266631917,-154.85,0.0001999,2]
[355551499,1741266631927,-154.85,0.0001999,2]
[355551500,1741266631937,-154.85,0.0001999,2]
[355551501,1741266631947,-154.85,0.0001999,2]
[355551502,1741266631957,-154.85,0.0001999,2]
[355551503,1741266631966,-154.85,0.0001999,2]
[355551504,1741266631976,-154.85,0.0001999,2]
[355551505,1741266631986,-300.0,0.00019999,2]
[355551506,1741266631995,-468.33194794,0.0002,120]
[355551507,1741266632012,-110394.17080951,0.0002,120]
[355551508,1741266632022,-420.0,0.00021777,2]
[355551509,1741266632031,-587.0,0.00023712,2]
[355551510,1741266632041,-294.69766312,0.000239,2]
[355551511,1741266632051,-294.69766312,0.000289,2]
[355551512,1741266632062,-400.0,0.00035,5]
[355551513,1741266632072,-23623.82603828,0.00035309,2]
[355551514,1741266632082,-160.0,0.00035484,2]
[355551515,1741266632092,-200.0,0.00035536,2]
[355551516,1741266632105,-618.887914,0.00035653,2]
[355551517,1741266632115,-164.054659,0.0003589,2]
[355551518,1741266632125,-3473.5269104,0.00036009,2]
[355551519,1741266632135,-414.1737888,0.00036178,64]
[355551520,1741266632146,-689.6169463,0.000369,7]
[355551521,1741266632157,-372.7069209,0.00037481,4]
[355551522,1741266632166,-689.61694627,0.00037486,7]
[355551523,1741266632176,-38615.56618916,0.000377,30]
[355551556,1741266637774,-500.0,0.00019999,2]
[355551558,1741266637783,-500.0,0.00019999,2]
[355551560,1741266637793,-500.0,0.00019999,2]
[355551562,1741266637803,-500.0,0.00019999,2]
[355551564,1741266637812,-177.92891079,0.00019999,2]
[355551566,1741266637822,-319.92169166,0.00019999,2]
[355551568,1741266637832,-2.14939755,0.00019999,2]
[355551571,1741266637851,-497.85060245,0.00019999,2]
[355551573,1741266637861,-500.0,0.00019999,2]
[355551575,1741266637870,-500.0,0.00019999,2]
[355551577,1741266637879,-500.0,0.00019999,2]
[355551579,1741266637888,-500.0,0.00019999,2]
[355551582,1741266637906,-500.0,0.00019999,2]
[355551584,1741266637917,-500.0,0.00019999,2]
[355551586,1741266637927,-500.0,0.00019999,2]
[355551588,1741266637937,-500.0,0.00019999,2]
[355551590,1741266637946,-500.0,0.00019999,2]
[355551592,1741266637956,-500.0,0.00019999,2]
[355551594,1741266637965,-500.0,0.00019999,2]
[355551596,1741266637975,-218.17145044,0.00019999,2]
[355551756,1741266640183,-281.82854956,0.00019999,2]
[355551757,1741266640192,-500.0,0.00019999,2]
[355551758,1741266640202,-500.0,0.00019999,2]
[355551759,1741266640212,-500.0,0.00019999,2]
[355551760,1741266640222,-500.0,0.00019999,2]
[355551761,1741266640231,-464.56987739,0.00019999,2]
[355551762,1741266640241,-500.0,0.00019999,2]
[355551763,1741266640251,-500.0,0.00019999,2]
[355551764,1741266640261,-500.0,0.00019999,2]
[355551765,1741266640270,-500.0,0.00019999,2]
[355551766,1741266640281,-500.0,0.00019999,2]
[355551767,1741266640514,-500.0,0.00019999,2]
[355551768,1741266640524,-500.0,0.00019999,2]
[355551769,1741266640535,-500.0,0.00019999,2]
[355551770,1741266640544,-500.0,0.00019999,2]
[355551771,1741266640554,-500.0,0.00019999,2]
[355551772,1741266640565,-500.0,0.00019999,2]
[355551773,1741266640575,-500.0,0.00019999,2]
[355551774,1741266640584,-500.0,0.00019999,2]
[355551775,1741266640594,-500.0,0.00024658,2]
[355551776,1741266640603,-500.0,0.00024658,2]
[355551777,1741266640613,-509.83307646,0.00024658,2]
[355551778,1741266640622,-34255.26870886,0.000377,30]
[355551793,1741266642927,-4269.87080956,0.000377,30]
[355551838,1741267593128,-527.15826858,0.000192,2]
[355551856,1741267757102,-353.35550887,0.000192,2]
[355551857,1741267757125,-152.56987586,0.000192,2]
[355551886,1741267832052,-14.29057962,0.000192,2]
[355551888,1741267832062,-900.0,0.00022,2]
[355551890,1741267832071,-900.0,0.00023,3]
[355551892,1741267832081,-1030.11170354,0.000292,7]
[355551895,1741267832091,-300.0,0.00029999,2]
[355551897,1741267832100,-7962.28480794,0.0003,60]
[355551899,1741267832116,-4281.2874625,0.0003,60]
[355551907,1741267832179,-150.0,0.000189,2]
[355551909,1741267832189,-406.35481391,0.0003,60]
[355551911,1741267832200,-158.523181,0.0003,60]
[355551913,1741267832210,-158.523181,0.0003,60]
[355551915,1741267832220,-420.0,0.00032332,2]
[355551917,1741267832230,-467.728707,0.00033541,2]
[355551919,1741267832240,-201.0021961,0.000336,30]
[355551921,1741267832251,-170.146869,0.00033833,2]
[355551923,1741267832261,-160.0,0.00034435,2]
[355551925,1741267832271,-500.0,0.000348,2]
[355551927,1741267832281,-233.0,0.00034847,2]
[355551929,1741267832295,-985.66055631,0.00035,2]
[355551931,1741267832304,-165.39300016,0.00035,2]
[355551932,1741267832314,-164.054659,0.0003589,2]
[355551933,1741267832324,-1806.5309161,0.00036008,2]
[355551934,1741267832334,-154.24,0.0003699,2]
[355551936,1741267832344,-1988.38656583,0.00037,30]
[355551938,1741267832354,-5826.72471805,0.00037,5]
[355551939,1741267832363,-666.0410715,0.00037481,4]
[355551940,1741267832373,-154.24,0.00037623,2]
[355551941,1741267832382,-1791.26006439,0.00037633,7]
[355551942,1741267832395,-3208.73993561,0.00037633,7]
[355551943,1741267832404,-158.523181,0.0003765,4]
[355551944,1741267832414,-154.24,0.0003769,2]
[355551945,1741267832424,-154.24,0.0003769,2]
[355551946,1741267832434,-2400.10469865,0.00037693,2]
[355551947,1741267832443,-17036.80010391,0.000377,30]
[355551948,1741267832455,-500.0,0.000377,30]
[355551949,1741267832467,-44305.49243149,0.000377,30]
[355551953,1741267838028,-150.0,0.000239,2]
[355551954,1741267838040,-3600.0,0.000377,30]
[355551970,1741267840847,-500.919993,0.000377,30]
[355551982,1741267843165,-10594.00000873,0.000377,30]
[355552030,1741268468621,3468.0,0.000162,10]
[355552052,1741268959139,-555.84528697,0.000192,2]
[355552086,1741269035878,-378.9651656,0.00035396,2]
[355552088,1741269035889,-313.006729,0.00035496,2]
[355552090,1741269035901,-188.42026554,0.000356,2]
[355552092,1741269035912,-163.724415,0.0003589,2]
[355552094,1741269035922,-89.40342486,0.00036008,2]
[355552100,1741269035966,-391.83,0.00036008,2]
[355552111,1741269036053,-1995.75988534,0.00036008,2]
[355552113,1741269036063,-166.51423165,0.0003668,100]
[355552115,1741269036074,-500.00000001,0.0003678,2]
[355552117,1741269036084,-400.0,0.00036999,2]
[355552119,1741269036095,-30595.97194302,0.00037,2]
[355552323,1741269038189,-150.0,0.000349,2]
[355552326,1741269038199,-1543.11414119,0.00037,2]
[355552328,1741269038209,-2209.62794234,0.0003726,2]
[355552330,1741269038219,-499.5308037,0.0003736,4]
[355552332,1741269038228,-165.58548333,0.00037388,2]
[355552334,1741269038237,-5170.3929386,0.000374,2]
[355552336,1741269038246,-500.0,0.00037473,5]
[355552338,1741269038256,-500.0,0.00037473,5]
[355552340,1741269038265,-160.20626189,0.00037473,5]
[355552342,1741269038275,-500.0,0.00037473,5]
[355552344,1741269038284,-278.57552852,0.00037473,5]
[355552346,1741269038294,-160.34817143,0.00037473,5]
[355552348,1741269038303,-500.0,0.00037473,5]
[355552350,1741269038312,-500.0,0.00037473,5]
[355552352,1741269038321,-500.0,0.00037473,5]
[355552354,1741269038331,-535.54140704,0.00037473,5]
[355552355,1741269038340,-150.00086222,0.00037473,5]
[355552358,1741269038350,-514.82396607,0.00037473,3]
[355552359,1741269038359,-500.0,0.00037473,5]
[355552362,1741269038368,-472.00599499,0.00037473,5]
[355552364,1741269038378,-515.84479023,0.00037473,5]
[355552366,1741269038387,-500.0,0.00037473,5]
[355552368,1741269038396,-500.0,0.00037488,3]
[355552369,1741269038405,-500.0,0.00037488,2]
[355552372,1741269038414,-500.0,0.00037488,15]
[355552374,1741269038423,-500.0,0.00037488,2]
[355552375,1741269038433,-500.0,0.00037488,2]
[355552377,1741269038443,-500.0,0.00037488,15]
[355552380,1741269038452,-500.0,0.00037488,2]
[355552381,1741269038462,-272.33326603,0.00037488,15]
[355552383,1741269038471,-500.0,0.00037488,2]
[355552386,1741269038480,-500.0,0.00037488,2]
[355552388,1741269038490,-500.0,0.00037488,2]
[355552390,1741269038499,-500.0,0.00037488,2]
[355552391,1741269038508,-256.98841225,0.00037488,2]
[355552394,1741269038520,-243.01158775,0.00037488,2]
[355552396,1741269038529,-500.0,0.00037488,2]
[355552398,1741269038538,-500.0,0.00037488,2]
[355552399,1741269038549,-500.0,0.00037488,2]
[355552401,1741269038558,-500.0,0.00037488,2]
[355552403,1741269038568,-500.0,0.00037488,2]
[355552406,1741269038578,-500.0,0.00037488,2]
[355552408,1741269038587,-588.72384111,0.00037488,2]
[355552409,1741269038597,-500.0,0.00037488,2]
[355552411,1741269038606,-500.0,0.00037488,2]
[355552413,1741269038616,-500.0,0.00037488,2]
[355552416,1741269038625,-500.0,0.00037488,2]
[355552418,1741269038635,-84.72096844,0.00037488,2]
[355552420,1741269038648,-415.27903156,0.00037488,2]
[355552422,1741269038658,-500.0,0.00037488,2]
[355552424,1741269038667,-500.0,0.00037488,2]
[355552426,1741269038676,-500.0,0.00037488,2]
[355552428,1741269038686,-500.0,0.00037488,2]
[355552430,1741269038695,-500.0,0.00037488,2]
[355552432,1741269038704,-500.0,0.00037488,2]
[355552434,1741269038714,-500.0,0.00037488,2]
[355552436,1741269038723,-500.0,0.00037488,2]
[355552438,1741269038733,-500.0,0.00037488,2]
[355552440,1741269038742,-500.0,0.00037488,2]
[355552442,1741269038751,-500.0,0.00037488,2]
[355552444,1741269038761,-500.0,0.00037488,2]
[355552446,1741269038770,-500.0,0.00037488,2]
[355552448,1741269038780,-500.0,0.00037488,2]
[355552450,1741269038789,-500.0,0.00037488,2]
[355552452,1741269038799,-500.0,0.00037488,2]
[355552454,1741269038809,-550.36545627,0.00037489,15]
[355552456,1741269038818,-500.0,0.00037489,15]
[355552458,1741269038828,-312.36634653,0.00037489,15]
[355552460,1741269038837,-797.39252386,0.0003749,5]
[355552462,1741269038849,-870.79005726,0.0003749,5]
[355552624,1741269040367,-634.3412,0.0003749,5]
[355554200,1741269992136,-300.0,0.00025204,2]
[355554201,1741269992162,-307.52687293,0.00025205,2]